fUSD/lending_fUSD_20240327
["ID","MTS","AMOUNT","RATE_DAILY","PERIOD"]
[320711333,1711525854897,-500.0,0.00054795,120]
[320711334,1711525854909,-500.0,0.00054795,120]
[320711335,1711525854919,-500.0,0.00054795,120]
[320711336,1711525854929,-500.0,0.00054795,120]
[320711337,1711525854939,-500.0,0.00054795,120]
[320711338,1711525854949,-500.0,0.00054795,120]
[320711339,1711525854959,-500.0,0.00054795,120]
[320711340,1711525854969,-500.0,0.00054795,120]
[320711341,1711525854981,-500.0,0.00054795,120]
[320711342,1711525854993,-500.0,0.00054795,120]
[320711343,1711525855003,-500.0,0.00054795,120]
[320711344,1711525855014,-500.0,0.00054795,120]
[320711345,1711525855024,-500.0,0.00054795,120]
[320711346,1711525855034,-500.0,0.00054795,120]
[320711347,1711525855044,-500.0,0.00054795,120]
[320711348,1711525855059,-500.0,0.00054795,120]
[320711349,1711525855069,-500.0,0.00054795,120]
[320711350,1711525855079,-500.0,0.00054795,120]
[320711351,1711525855090,-500.0,0.00054795,120]
[320711352,1711525855101,-500.0,0.00054795,120]
[320711353,1711525855112,-500.0,0.00054795,120]
[320711354,1711525855124,-500.0,0.00054795,120]
[320711355,1711525855135,-500.0,0.00054795,120]
[320711356,1711525855146,-500.0,0.00054795,120]
[320711357,1711525855159,-500.0,0.00054795,120]
[320711358,1711525855169,-500.0,0.00054795,120]
[320711359,1711525855179,-500.0,0.00054795,120]
[320711360,1711525855189,-500.0,0.00054795,120]
[320711361,1711525855199,-500.0,0.00054795,120]
[320711362,1711525855209,-500.0,0.00054795,120]
[320711363,1711525855219,-500.0,0.00054795,120]
[320711364,1711525855233,-500.0,0.00054795,120]
[320711365,1711525855243,-866.0,0.00054795,120]
[320711366,1711525855254,-157.032716,0.00054798,106]
[320711367,1711525855265,-4000.0,0.000548,120]
[320711368,1711525855278,-872.66201951,0.00054892,120]
[320711369,1711525855288,-570.0,0.00054932,120]
[320711370,1711525855299,-844.32813135,0.00054958,120]
[320711371,1711525855311,-12696.38624888,0.00054968,32]
[320711372,1711525855322,-151.0,0.00054968,120]
[320711373,1711525855337,-151.0,0.00054968,120]
[320711374,1711525855347,-155.74565308,0.00054976,60]
[320711375,1711525855357,-2807.0,0.00055,3]
[320711376,1711525855377,-156.09,0.00055,30]
[320711377,1711525855401,-5000.0,0.00055,120]
[320711378,1711525855423,-228.86,0.00055,30]
[320711379,1711525855440,-309.66,0.00055,14]
[320711380,1711525855458,-10000.0,0.00055,120]
[320711381,1711525855476,-159.78,0.00055,45]
[320711382,1711525855492,-151.0,0.00055062,120]
[320711383,1711525855511,-151.0,0.00055062,60]
[320711384,1711525855529,-161.60893691,0.00055067,120]
[320711385,1711525855549,-13333.9030618,0.00055067,120]
[320711386,1711525855565,-1688.95,0.00055067,120]
[320711387,1711525855587,-1688.95,0.00055067,120]
[320711388,1711525855607,-1688.95,0.00055067,120]
[320711389,1711525855628,-1688.95,0.00055067,120]
[320711390,1711525855643,-1689.1031349,0.00055067,120]
[320711391,1711525855659,-150.0,0.00055067,120]
[320711392,1711525855678,-500.0,0.00055068,120]
[320711393,1711525855696,-2000.0,0.00055068,15]
[320711394,1711525855710,-200.0,0.00055068,15]
[320711395,1711525855722,-500.0,0.00055068,120]
[320711396,1711525855738,-500.0,0.00055068,120]
[320711397,1711525855757,-500.0,0.00055068,120]
[320711398,1711525855770,-500.0,0.00055068,120]
[320711399,1711525855784,-500.0,0.00055068,120]
[320711400,1711525855800,-500.0,0.00055068,120]
[320711401,1711525855817,-500.0,0.00055068,120]
[320711402,1711525855843,-500.0,0.00055068,120]
[320711403,1711525855860,-500.0,0.00055068,120]
[320711404,1711525855876,-500.0,0.00055068,120]
[320711405,1711525855891,-500.0,0.00055068,120]
[320711406,1711525855908,-500.0,0.00055068,120]
[320711407,1711525855922,-500.0,0.00055068,120]
[320711408,1711525855937,-500.0,0.00055068,120]
[320711409,1711525855951,-500.0,0.00055068,120]
[320711410,1711525855965,-507.04,0.00055068,120]
[320711411,1711525855979,-500.0,0.00055068,120]
[320711412,1711525855993,-500.0,0.00055068,120]
[320711413,1711525856008,-500.0,0.00055068,120]
[320711414,1711525856021,-500.0,0.00055068,120]
[320711415,1711525856036,-151.0,0.00055068,120]
[320711416,1711525856051,-500.0,0.00055068,120]
[320711417,1711525856066,-509.71527776,0.00055068,120]
[320711418,1711525856079,-500.0,0.00055068,120]
[320711419,1711525856094,-500.0,0.00055068,120]
[320711420,1711525856108,-500.0,0.00055068,120]
[320711421,1711525856121,-500.0,0.00055068,120]
[320711422,1711525856135,-517.03,0.00055068,120]
[320711423,1711525856147,-151.0,0.00055068,120]
[320711424,1711525856166,-500.0,0.00055068,120]
[320711425,1711525856180,-652.29,0.00055068,120]
[320711426,1711525856194,-500.0,0.00055068,120]
[320711427,1711525856209,-500.0,0.00055068,120]
[320711428,1711525856223,-500.0,0.00055068,120]
[320711429,1711525856239,-500.0,0.00055068,120]
[320711430,1711525856252,-500.0,0.00055068,120]
[320711431,1711525856267,-529.79,0.00055068,120]
[320711432,1711525856280,-593.81,0.00055068,120]
[320711433,1711525856294,-500.0,0.00055068,120]
[320711434,1711525856307,-500.0,0.00055068,120]
[320711435,1711525856321,-500.0,0.00055068,120]
[320711436,1711525856335,-500.0,0.00055068,120]
[320711437,1711525856348,-151.0,0.00055068,60]
[320711438,1711525856362,-502.43998167,0.00055068,120]
[320711439,1711525856375,-500.0,0.00055068,120]
[320711440,1711525856387,-500.0,0.00055068,120]
[320711441,1711525856401,-1123.17,0.00055068,120]
[320711442,1711525856419,-500.0,0.00055068,120]
[320711443,1711525856432,-500.0,0.00055068,120]
[320711444,1711525856445,-500.0,0.00055068,120]
[320711445,1711525856458,-500.0,0.00055068,120]
[320711446,1711525856472,-2000.0,0.00055068,15]
[320711447,1711525856487,-200.0,0.00055068,15]
[320711448,1711525856500,-500.0,0.00055068,120]
[320711449,1711525856513,-533.25,0.00055068,120]
[320711450,1711525856527,-500.0,0.00055068,120]
[320711451,1711525856541,-503.83123047,0.00055068,120]
[320711452,1711525856554,-1252.45,0.00055068,120]
[320711453,1711525856568,-500.0,0.00055068,120]
[320711454,1711525856581,-500.0,0.00055068,120]
[320711455,1711525856594,-537.74,0.00055068,120]
[320711456,1711525856609,-889.63,0.00055068,120]
[320711457,1711525856623,-500.0,0.00055068,120]
[320711458,1711525856638,-2115.38,0.00055068,120]
[320711459,1711525856648,-1138.93,0.00055068,120]
[320711460,1711525856660,-500.0,0.00055068,120]
[320711461,1711525856670,-151.0,0.00055068,120]
[320711462,1711525856679,-500.0,0.00055068,120]
[320711463,1711525856688,-503.14,0.00055068,120]
[320711464,1711525856697,-500.0,0.00055068,120]
[320711465,1711525856706,-500.0,0.00055068,120]
[320711466,1711525856716,-500.0,0.00055068,120]
[320711467,1711525856726,-720.64,0.00055068,120]
[320711468,1711525856735,-503.75,0.00055068,120]
[320711469,1711525856745,-1867.32,0.00055068,120]
[320711470,1711525856754,-196.529674,0.00055068,30]
[320711471,1711525856763,-196.529674,0.00055068,30]
[320711472,1711525856772,-584.18,0.00055068,120]
[320711473,1711525856782,-196.529674,0.00055068,30]
[320711474,1711525856791,-196.529674,0.00055068,30]
[320711475,1711525856801,-991.68,0.00055068,120]
[320711476,1711525856811,-500.0,0.00055068,120]
[320711477,1711525856821,-500.0,0.00055068,120]
[320711478,1711525856830,-1405.26,0.00055068,120]
[320711479,1711525856840,-500.0,0.00055068,120]
[320711480,1711525856849,-500.0,0.00055068,120]
[320711481,1711525856858,-500.0,0.00055068,120]
[320711482,1711525856868,-1133.93,0.00055068,120]
[320711483,1711525856877,-500.0,0.00055068,120]
[320711484,1711525856886,-627.75,0.00055068,120]
[320711485,1711525856895,-500.0,0.00055068,120]
[320711486,1711525856905,-151.0,0.00055068,120]
[320711487,1711525856916,-151.0,0.00055068,120]
[320711488,1711525857230,-758.88,0.00055068,120]
[320711489,1711525857252,-657.28,0.00055068,120]
[320711490,1711525857275,-500.0,0.00055068,120]
[320711491,1711525857291,-500.0,0.00055068,120]
[320711492,1711525857301,-500.0,0.00055068,120]
[320711493,1711525857312,-500.0,0.00055068,120]
[320711494,1711525857323,-326.08622372,0.00055068,120]
[320711495,1711525857332,-500.0,0.00055068,120]
[320711496,1711525857341,-500.0,0.00055068,120]
[320711497,1711525857351,-917.05,0.00055068,120]
[320711498,1711525857361,-545.82,0.00055068,120]
[320711499,1711525857371,-857.61,0.00055068,120]
[320711500,1711525857380,-500.0,0.00055068,120]
[320711501,1711525857389,-500.0,0.00055068,120]
[320711502,1711525857399,-500.0,0.00055068,120]
[320711503,1711525857413,-217.107115,0.00055068,120]
[320711504,1711525857423,-217.107115,0.00055068,120]
[320711505,1711525857432,-1360.42,0.00055068,120]
[320711506,1711525857441,-754.09,0.00055068,120]
[320711507,1711525857451,-217.107115,0.00055068,120]
[320711508,1711525857460,-217.107115,0.00055068,120]
[320711509,1711525857470,-916.55,0.00055068,120]
[320711510,1711525857479,-500.0,0.00055068,120]
[320711511,1711525857489,-1333.29,0.00055068,120]
[320711512,1711525857498,-500.0,0.00055068,120]
[320711513,1711525857508,-640.04,0.00055068,120]
[320711514,1711525857518,-606.77,0.00055068,120]
[320711515,1711525857527,-501.208439,0.00055068,120]
[320711516,1711525857536,-501.208439,0.00055068,120]
[320711517,1711525857545,-500.0,0.00055068,120]
[320711518,1711525857558,-501.208439,0.00055068,120]
[320711519,1711525857567,-501.208439,0.00055068,120]
[320711520,1711525857576,-500.0,0.00055068,120]
[320711521,1711525857585,-813.06,0.00055068,120]
[320711522,1711525857595,-500.0,0.00055068,120]
[320711523,1711525857604,-500.0,0.00055068,120]
[320711524,1711525857613,-151.0,0.00055068,120]
[320711525,1711525857622,-993.24,0.00055068,120]
[320711526,1711525857632,-151.0,0.00055068,120]
[320711527,1711525857641,-500.0,0.00055068,120]
[320711528,1711525857650,-500.0,0.00055068,120]
[320711529,1711525857663,-500.0,0.00055068,120]
[320711530,1711525857672,-805.62,0.00055068,120]
[320711531,1711525857681,-500.0,0.00055068,120]
[320711532,1711525857690,-500.0,0.00055068,120]
[320711533,1711525857699,-151.0,0.00055068,120]
[320711534,1711525857709,-151.0,0.00055068,120]
[320711535,1711525857718,-779.51,0.00055068,120]
[320711536,1711525857728,-849.56,0.00055068,120]
[320711537,1711525857737,-203.059112,0.00055068,120]
[320711538,1711525857747,-500.0,0.00055068,120]
[320711539,1711525857756,-151.0,0.00055068,120]
[320711540,1711525857765,-254.058657,0.00055068,120]
[320711541,1711525857774,-734.05,0.00055068,120]
[320711542,1711525857784,-500.0,0.00055068,120]
[320711543,1711525857793,-1210.2,0.00055068,120]
[320711544,1711525857802,-500.0,0.00055068,120]
[320711545,1711525857813,-811.54,0.00055068,120]
[320711546,1711525857822,-500.0,0.00055068,120]
[320711547,1711525857831,-500.0,0.00055068,120]
[320711548,1711525857841,-500.0,0.00055068,120]
[320711549,1711525857850,-500.0,0.00055068,120]
[320711550,1711525857859,-500.0,0.00055068,120]
[320711551,1711525857869,-595.63,0.00055068,120]
[320711552,1711525857878,-998.7,0.00055068,120]
[320711553,1711525857887,-151.0,0.00055068,120]
[320711554,1711525857896,-742.86,0.00055068,120]
[320711555,1711525857905,-151.0,0.00055068,120]
[320711557,1711525857919,-500.0,0.00055068,120]
[320711558,1711525857928,-576.56,0.00055068,120]
[320711559,1711525857937,-500.0,0.00055068,120]
[320711560,1711525857947,-755.06,0.00055068,120]
[320711561,1711525857956,-673.95,0.00055068,120]
[320711562,1711525857965,-528.46,0.00055068,120]
[320711563,1711525857975,-1493.73,0.00055068,120]
[320711564,1711525857984,-157.618783,0.00055068,120]
[320711565,1711525857994,-157.618783,0.00055068,120]
[320711566,1711525858003,-151.0,0.00055068,120]
[320711567,1711525858012,-151.0,0.00055068,120]
[320711568,1711525858022,-157.618783,0.00055068,120]
[320711569,1711525858033,-157.618783,0.00055068,120]
[320711570,1711525858043,-500.0,0.00055068,120]
[320711571,1711525858053,-500.0,0.00055068,120]
[320711572,1711525858063,-975.02,0.00055068,120]
[320711573,1711525858072,-509.43,0.00055068,120]
[320711574,1711525858082,-815.37,0.00055068,120]
[320711575,1711525858091,-500.0,0.00055068,120]
[320711576,1711525858101,-500.0,0.00055068,120]
[320711577,1711525858111,-400.615535,0.00055068,120]
[320711578,1711525858121,-500.0,0.00055068,120]
[320711579,1711525858130,-239.240921,0.00055068,120]
[320711580,1711525858140,-400.615535,0.00055068,120]
[320711581,1711525858149,-239.240921,0.00055068,120]
[320711582,1711525858159,-500.0,0.00055068,120]
[320711583,1711525858173,-1245.34,0.00055068,120]
[320711584,1711525858183,-500.0,0.00055068,120]
[320711585,1711525858192,-400.615535,0.00055068,120]
[320711586,1711525858202,-400.615535,0.00055068,120]
[320711587,1711525858212,-239.240921,0.00055068,120]
[320711588,1711525858224,-239.240921,0.00055068,120]
[320711589,1711525858237,-500.0,0.00055068,120]
[320711590,1711525858247,-500.0,0.00055068,120]
[320711591,1711525858257,-177.023489,0.00055068,120]
[320711592,1711525858267,-500.0,0.00055068,120]
[320711593,1711525858276,-2377.62,0.00055068,120]
[320711594,1711525858286,-886.7,0.00055068,120]
[320711595,1711525858296,-500.0,0.00055068,120]
[320711596,1711525858305,-500.0,0.00055068,120]
[320711597,1711525858317,-689.41,0.00055068,120]
[320711598,1711525858327,-500.0,0.00055068,120]
[320711599,1711525858337,-500.0,0.00055068,120]
[320711600,1711525858347,-1394.65,0.00055068,120]
[320711601,1711525858356,-157.105192,0.00055068,120]
[320711602,1711525858366,-157.105192,0.00055068,120]
[320711603,1711525858377,-841.34,0.00055068,120]
[320711604,1711525858387,-157.105192,0.00055068,120]
[320711605,1711525858397,-500.0,0.00055068,120]
[320711606,1711525858407,-157.105192,0.00055068,120]
[320711607,1711525858420,-500.0,0.00055068,120]
[320711608,1711525858429,-500.0,0.00055068,120]
[320711609,1711525858439,-500.0,0.00055068,120]
[320711610,1711525858448,-500.0,0.00055068,7]
[320711611,1711525858457,-500.0,0.00055068,120]
[320711612,1711525858466,-531.18,0.00055068,120]
[320711613,1711525858476,-605.04,0.00055068,30]
[320711614,1711525858486,-647.81,0.00055068,120]
[320711615,1711525858495,-1268.08,0.00055068,120]
[320711616,1711525858505,-500.0,0.00055068,120]
[320711617,1711525858514,-500.0,0.00055068,120]
[320711618,1711525858524,-510.54,0.00055068,120]
[320711619,1711525858534,-683.62,0.00055068,120]
[320711620,1711525858543,-594.29,0.00055068,120]
[320711621,1711525858552,-500.0,0.00055068,120]
[320711622,1711525858561,-500.0,0.00055068,120]
[320711623,1711525858571,-500.0,0.00055068,120]
[320711624,1711525858581,-1134.24,0.00055068,120]
[320711625,1711525858590,-560.81,0.00055068,120]
[320711626,1711525858599,-489.39460578,0.00055068,120]
[320711627,1711525858609,-500.0,0.00055068,120]
[320711628,1711525858618,-500.0,0.00055068,120]
[320711629,1711525858628,-510.33,0.00055068,120]
[320711630,1711525858637,-720.05,0.00055068,120]
[320711631,1711525858646,-835.07,0.00055068,120]
[320711632,1711525858655,-2817.42,0.00055068,120]
[320711633,1711525858666,-10000.0,0.00055068,2]
[320711634,1711525858675,-474.82,0.00055068,120]
[320711635,1711525858684,-500.0,0.00055068,120]
[320711636,1711525858693,-500.0,0.00055068,120]
[320711637,1711525858702,-752.42,0.00055068,120]
[320711638,1711525858713,-200.0,0.00055068,15]
[320711639,1711525858723,-586.03,0.00055068,120]
[320711640,1711525858733,-769.68,0.00055068,120]
[320711641,1711525858742,-500.0,0.00055068,120]
[320711642,1711525858752,-882.61,0.00055068,120]
[320711643,1711525858761,-716.88,0.00055068,120]
[320711644,1711525858771,-500.0,0.00055068,120]
[320711645,1711525858781,-823.85,0.00055068,120]
[320711646,1711525858792,-823.95,0.00055068,120]
[320711647,1711525858801,-151.0,0.00055068,120]
[320711648,1711525858811,-151.0,0.00055068,120]
[320711649,1711525858821,-559.73,0.00055068,120]
[320711650,1711525858831,-637.29,0.00055068,120]
[320711651,1711525858840,-500.0,0.00055068,120]
[320711653,1711525858851,-500.0,0.00055068,120]
[320711654,1711525858860,-505.97,0.00055068,120]
[320711655,1711525858870,-941.11,0.00055068,120]
[320711656,1711525858879,-500.0,0.00055068,120]
[320711657,1711525858888,-500.0,0.00055068,120]
[320711658,1711525858899,-500.0,0.00055068,120]
[320711659,1711525858908,-500.0,0.00055068,120]
[320711660,1711525858919,-500.0,0.00055068,120]
[320711661,1711525858929,-1505.84,0.00055068,120]
[320711662,1711525858939,-500.0,0.00055068,120]
[320711663,1711525858949,-258.14950286,0.00055068,120]
[320711664,1711525858958,-500.0,0.00055068,120]
[320711665,1711525858968,-1045.32,0.00055068,120]
[320711666,1711525858978,-500.0,0.00055068,120]
[320711667,1711525858987,-336.77008618,0.00055068,120]
[320711668,1711525858996,-151.0,0.00055068,120]
[320711669,1711525859006,-500.0,0.00055068,120]
[320711670,1711525859016,-255.205172,0.00055068,120]
[320711671,1711525859025,-500.0,0.00055068,120]
[320711672,1711525859035,-660.1,0.00055068,120]
[320711673,1711525859045,-500.0,0.00055068,120]
[320711674,1711525859054,-502.51,0.00055068,120]
[320711675,1711525859064,-873.33,0.00055068,120]
[320711676,1711525859074,-221.656029,0.00055068,120]
[320711677,1711525859086,-151.0,0.00055068,120]
[320711678,1711525859095,-221.656029,0.00055068,120]
[320711679,1711525859105,-151.0,0.00055068,120]
[320711680,1711525859114,-530.21,0.00055068,120]
[320711681,1711525859124,-221.656029,0.00055068,120]
[320711682,1711525859133,-221.656029,0.00055068,120]
[320711683,1711525859143,-1369.65,0.00055068,120]
[320711684,1711525859152,-500.0,0.00055068,120]
[320711685,1711525859162,-500.0,0.00055068,120]
[320711686,1711525859171,-855.77,0.00055068,120]
[320711687,1711525859180,-151.0,0.00055068,120]
[320711688,1711525859189,-151.0,0.00055068,120]
[320711689,1711525859199,-500.0,0.00055068,120]
[320711690,1711525859207,-183.131115,0.00055068,120]
[320711691,1711525859217,-737.8,0.00055068,120]
[320711692,1711525859229,-505.48684654,0.00055068,120]
[320711693,1711525859239,-151.0,0.00055068,120]
[320711694,1711525859249,-151.0,0.00055068,120]
[320711695,1711525859258,-510.70002132,0.00055068,120]
[320711696,1711525859268,-500.0,0.00055068,120]
[320711697,1711525859277,-500.0,0.00055068,120]
[320711698,1711525859286,-151.0,0.00055068,120]
[320711699,1711525859296,-151.0,0.00055068,120]
[320711700,1711525859306,-886.25,0.00055068,120]
[320711701,1711525859315,-1671.21,0.00055068,120]
[320711702,1711525859327,-500.0,0.00055068,120]
[320711703,1711525859336,-500.0,0.00055068,120]
[320711704,1711525859345,-525.76,0.00055068,120]
[320711705,1711525859355,-547.06,0.00055068,120]
[320711706,1711525859365,-500.0,0.00055068,120]
[320711707,1711525859375,-500.0,0.00055068,120]
[320711708,1711525859384,-500.0,0.00055068,120]
[320711709,1711525859393,-500.0,0.00055068,120]
[320711710,1711525859403,-2822.36,0.00055068,120]
[320711711,1711525859414,-1236.77,0.00055068,120]
[320711712,1711525859423,-1164.5,0.00055068,120]
[320711713,1711525859432,-1120.73,0.00055068,120]
[320711714,1711525859442,-500.0,0.00055068,120]
[320711715,1711525859452,-151.0,0.00055068,120]
[320711716,1711525859463,-151.0,0.00055068,120]
[320711717,1711525859472,-151.0,0.00055068,120]
[320711718,1711525859483,-151.0,0.00055068,120]
[320711719,1711525859494,-1144.25,0.00055068,120]
[320711720,1711525859504,-1439.78,0.00055068,120]
[320711721,1711525859516,-151.0,0.00055068,120]
[320711722,1711525859525,-151.0,0.00055068,120]
[320711723,1711525859536,-500.0,0.00055068,120]
[320711724,1711525859546,-1000.34,0.00055068,120]
[320711725,1711525859556,-500.0,0.00055068,120]
[320711726,1711525859565,-500.0,0.00055068,120]
[320711727,1711525859576,-450.0,0.00055068,30]
[320711728,1711525859585,-500.0,0.00055068,120]
[320711729,1711525859595,-1262.4,0.00055068,120]
[320711730,1711525859604,-980.54,0.00055068,120]
[320711731,1711525859614,-2126.89,0.00055068,120]
[320711732,1711525859624,-500.0,0.00055068,120]
[320711733,1711525859635,-2798.56,0.00055068,120]
[320711734,1711525859645,-296.06204803,0.00055068,120]
[320711735,1711525859654,-500.0,0.00055068,120]
[320711736,1711525859666,-360.71,0.00055068,120]
[320711737,1711525859676,-500.0,0.00055068,120]
[320711738,1711525859686,-151.0,0.00055068,120]
[320711739,1711525859697,-151.0,0.00055068,120]
[320711740,1711525859706,-500.0,0.00055068,120]
[320711741,1711525859716,-500.0,0.00055068,120]
[320711742,1711525859726,-1130.52,0.00055068,120]
[320711743,1711525859736,-508.0,0.00055068,120]
[320711744,1711525859746,-949.69,0.00055068,120]
[320711745,1711525859755,-561.16,0.00055068,120]
[320711746,1711525859765,-1025.89,0.00055068,120]
[320711747,1711525859774,-500.0,0.00055068,120]
[320711748,1711525859784,-564.58,0.00055068,120]
[320711749,1711525859793,-500.0,0.00055068,120]
[320711750,1711525859803,-500.0,0.00055068,120]
[320711751,1711525859813,-2866.9,0.00055068,120]
[320711752,1711525859822,-700.92,0.00055068,120]
[320711753,1711525859832,-500.0,0.00055068,120]
[320711754,1711525859842,-9354.09,0.00055068,120]
[320711755,1711525859852,-689.19,0.00055068,120]
[320711756,1711525859862,-500.0,0.00055068,120]
[320711757,1711525859871,-5129.23,0.00055068,120]
[320711758,1711525859881,-500.0,0.00055068,120]
[320711759,1711525859891,-1703.26,0.00055068,120]
[320711760,1711525859901,-725.59,0.00055068,120]
[320711761,1711525859911,-568.56,0.00055068,120]
[320711762,1711525859920,-500.0,0.00055068,120]
[320711763,1711525859930,-12075.46,0.00055068,120]
[320711764,1711525859939,-1809.32,0.00055068,120]
[320711765,1711525859948,-1749.21,0.00055068,120]
[320711766,1711525859957,-500.0,0.00055068,120]
[320711767,1711525859967,-505.57,0.00055068,120]
[320711768,1711525859976,-6555.48,0.00055068,120]
[320711769,1711525859985,-151.0,0.00055068,120]
[320711770,1711525859994,-151.0,0.00055068,120]
[320711771,1711525860003,-17037.33,0.00055068,120]
[320711772,1711525860012,-1375.55,0.00055068,120]
[320711773,1711525860022,-500.0,0.00055068,120]
[320711774,1711525860031,-500.0,0.00055068,120]
[320711775,1711525860040,-1402.96,0.00055068,120]
[320711776,1711525860049,-800.71,0.00055068,120]
[320711777,1711525860058,-2221.01,0.00055068,120]
[320711778,1711525860068,-1019.8,0.00055068,120]
[320711779,1711525860078,-1393.86,0.00055068,120]
[320711780,1711525860088,-2214.34,0.00055068,120]
[320711781,1711525860097,-500.0,0.00055068,120]
[320711782,1711525860107,-1468.83,0.00055068,120]
[320711783,1711525860116,-543.03,0.00055068,120]
[320711784,1711525860126,-946.06,0.00055068,120]
[320711785,1711525860135,-500.0,0.00055068,120]
[320711786,1711525860146,-500.0,0.00055068,120]
[320711787,1711525860156,-500.0,0.00055068,120]
[320711788,1711525860167,-2715.5,0.00055068,120]
[320711789,1711525860177,-2155.85,0.00055068,120]
[320711790,1711525860187,-5129.51,0.00055068,120]
[320711791,1711525860197,-151.0,0.00055068,120]
[320711792,1711525860207,-2023.57,0.00055068,120]
[320711793,1711525860218,-151.0,0.00055068,120]
[320711794,1711525860228,-1427.44,0.00055068,120]
[320711795,1711525860242,-500.0,0.00055068,120]
[320711796,1711525860256,-500.0,0.00055068,120]
[320711797,1711525860266,-500.0,0.00055068,120]
[320711798,1711525860276,-2375.79,0.00055068,120]
[320711799,1711525860286,-522.73,0.00055068,120]
[320711800,1711525860296,-510.19322637,0.00055068,120]
[320711801,1711525860306,-151.0,0.00055068,120]
[320711802,1711525860318,-151.0,0.00055068,120]
[320711803,1711525860329,-21788.91,0.00055068,120]
[320711804,1711525860338,-2101.95,0.00055068,120]
[320711805,1711525860348,-520.07,0.00055068,120]
[320711806,1711525860357,-500.0,0.00055068,120]
[320711807,1711525860367,-500.0,0.00055068,120]
[320711808,1711525860377,-999.85,0.00055068,120]
[320711809,1711525860386,-500.0,0.00055068,120]
[320711810,1711525860399,-500.0,0.00055068,120]
[320711811,1711525860409,-2978.93,0.00055068,120]
[320711812,1711525860422,-500.0,0.00055068,120]
[320711813,1711525860432,-14043.35,0.00055068,120]
[320711814,1711525860442,-500.0,0.00055068,120]
[320711815,1711525860452,-500.0,0.00055068,120]
[320711816,1711525860462,-24553.64,0.00055068,120]
[320711817,1711525860472,-1794.73,0.00055068,120]
[320711818,1711525860483,-35887.03,0.00055068,120]
[320711819,1711525860638,-500.0,0.00055068,120]
[320711820,1711525860663,-500.0,0.00055068,120]
[320711821,1711525860674,-151.0,0.00055068,120]
[320711822,1711525860683,-152.604602,0.00055068,120]
[320711823,1711525860692,-500.0,0.00055068,120]
[320711824,1711525860702,-2112.01,0.00055068,120]
[320711825,1711525860711,-699.48,0.00055068,120]
[320711826,1711525860720,-624.11874215,0.00055068,120]
[320711827,1711525860729,-500.0,0.00055068,120]
[320711828,1711525860739,-56250.3,0.00055068,120]
[320711829,1711525860749,-1213.57,0.00055068,120]
[320711830,1711525860758,-500.0,0.00055068,120]
[320711831,1711525860769,-1785.65,0.00055068,120]
[320711832,1711525860778,-2362.09,0.00055068,120]
[320711833,1711525860787,-500.0,0.00055068,120]
[320711834,1711525860797,-1903.11,0.00055068,120]